[Event "New York Winter Invitational IM-D 2022"]
[Site "New York"]
[Date "2022.01.14"]
[Round "1.1"]
[White "Hardaway, Brewington"]
[Black "Canty, James"]
[Result "1-0"]
[ECO "B38"]
[WhiteElo "2207"]
[BlackElo "2201"]
[Annotator "ChessBase"]
[PlyCount "93"]
[EventDate "2022.01.11"]
[EventType "tourn"]
[EventCountry "USA"]
[SourceTitle "playchess.com"]
[Source "ChessBase"]
[SourceQuality "1"]
[TimeControl "5400+30"]

1. e4 {[%emt 0:00:05]} c5 {[%emt 0:00:04]} 2. Nf3 {[%emt 0:00:04]} g6 {[%emt 0:00:11]} 3. d4 {[%emt 0:00:04]} cxd4 {[%emt 0:00:11]} 4. Nxd4 {[%emt 0:00:03]} Nc6 {[%emt 0:00:08]} 5. c4 {[%emt 0:00:13]} Bg7 {[%emt 0:00:09]} 6. Be3 {[%emt 0:00:05]} Qb6 {[%emt 1:32:47]} 7. Nb3 {[%emt 0:03:04]} Qd8 {[%emt 0:00:00]} 8. Nc3 {[%emt 0:00:21]} Bxc3+ {[%emt 0:00:00]} 9. bxc3 {[%emt 0:00:02]} Nf6 {[%emt 0:00:00]} 10. f3 {[%emt 0:00:56]} d6 {[%emt 0:00:00]} 11. Qd2 {[%emt 0:03:12]} b6 {[%emt 0:00:00]} 12. Bh6 {[%emt 0:04:04]} Rg8 {[%emt 0:00:00]} 13. Rd1 {[%emt 0:06:02]} Qc7 {[%emt 0:00:00]} 14. Nd4 {[%emt 0:04:35]} Ne5 {[%emt 0:00:00]} 15. Nb5 {[%emt 0:04:34]} Qc6 {[%emt 0:00:00]} 16. Bg5 {[%emt 0:02:30]} Nfd7 {[%emt 0:00:00]} 17. Qd5 {[%emt 0:11:29]} Qxd5 {[%emt 0:00:00]} 18. cxd5 {[%emt 0:00:27]} f6 {[%emt 0:00:00]} 19. Nc7+ {[%emt 0:06:52]} Kd8 {[%emt 0:00:00]} 20. Ne6+ {[%emt 0:00:05]} Ke8 {[%emt 0:00:00]} 21. Be3 {[%emt 0:02:43]} Rb8 {[%emt 0:00:00]} 22. Rb1 {[%emt 0:05:55]} f5 {[%emt 0:00:00]} 23. Bb5 {[%emt 0:03:17]} Kf7 {[%emt 0:00:00]} 24. Ng5+ {[%emt 0:05:59]} Kg7 {[%emt 0:00:00]} 25. f4 {[%emt 0:01:57]} a6 {[%emt 0:00:00]} 26. Ne6+ {[%emt 0:09:22]} Kf7 {[%emt 0:00:00]} 27. Be2 {[%emt 0:01:59]} Ng4 {[%emt 0:00:00]} 28. Ng5+ {[%emt 0:00:06]} Kg7 {[%emt 0:00:00]} 29. Bd4+ {[%emt 0:02:30]} Ngf6 {[%emt 0:00:00]} 30. e5 {[%emt 0:06:51]} dxe5 {[%emt 0:00:00]} 31. fxe5 {[%emt 0:00:06]} Nxd5 {[%emt 0:00:00]} 32. c4 {[%emt 0:00:50]} Nc7 {[%emt 0:00:00]} 33. e6+ {[%emt 0:00:55]} Nf6 {[%emt 0:00:00]} 34. Be5 {[%emt 0:00:24]} Rb7 {[%emt 0:00:00]} 35. Bf3 {[%emt 0:00:04]} Ra7 {[%emt 0:00:00]} 36. Rxb6 {[%emt 0:00:27]} h6 {[%emt 0:00:00]} 37. h4 {[%emt 0:02:40]} a5 {[%emt 0:00:00]} 38. Nh3 {[%emt 0:05:53]} Nxe6 {[%emt 0:00:00]} 39. Bd5 {[%emt 0:00:16]} Kf7 {[%emt 0:00:00]} 40. Bxf6 {[%emt 0:00:14]} exf6 {[%emt 0:00:00]} 41. Nf4 {[%emt 0:00:30]} Re8 {[%emt 0:00:00]} 42. Kf2 {[%emt 0:00:11]} Rae7 {[%emt 0:00:00]} 43. h5 {[%emt 0:05:21]} gxh5 {[%emt 0:00:00]} 44. Re1 {[%emt 0:01:11]} h4 {[%emt 0:00:00]} 45. Nxe6 {[%emt 0:01:18]} Bxe6 {[%emt 0:00:00]} 46. Rbxe6 {[%emt 0:00:02]} Rxe6 {[%emt 0:00:00]} 47. Kf3 {[%emt 0:00:03]} 1-0

[Event "New York Winter Invitational IM-D 2022"]
[Site "New York"]
[Date "2022.01.15"]
[Round "4.2"]
[White "Managadze, Nikoloz"]
[Black "Canty, James"]
[Result "0-1"]
[ECO "E62"]
[WhiteElo "2453"]
[BlackElo "2201"]
[Annotator "ChessBase"]
[PlyCount "78"]
[EventDate "2022.01.11"]
[EventType "tourn"]
[EventCountry "USA"]
[SourceTitle "playchess.com"]
[Source "ChessBase"]
[SourceQuality "1"]
[TimeControl "5400+30"]

1. c4 {[%emt 0:07:25]} Nf6 {[%emt 0:00:07]} 2. Nc3 {[%emt 0:00:16]} g6 {[%emt 0:00:08]} 3. g3 {[%emt 0:01:34]} Bg7 {[%emt 0:00:35]} 4. Bg2 {[%emt 0:00:07]} O-O {[%emt 0:01:05]} 5. d4 {[%emt 0:00:14]} d6 {[%emt 0:00:09]} 6. Nf3 {[%emt 0:00:17]} Nc6 {[%emt 0:00:16]} 7. d5 {[%emt 0:00:15]} Na5 {[%emt 0:00:23]} 8. Qd3 {[%emt 0:02:06]} c5 {[%emt 0:01:32]} 9. dxc6 {[%emt 0:07:01]} Nxc6 {[%emt 0:01:03]} 10. O-O {[%emt 0:00:32]} Bg4 {[%emt 0:06:23]} 11. h3 {[%emt 0:08:14]} Be6 {[%emt 0:09:49]} 12. Ng5 {[%emt 0:09:15]} Bd7 {[%emt 0:04:59]} 13. Nd5 {[%emt 0:00:07]} Rc8 {[%emt 0:01:52]} 14. Bf4 {[%emt 0:06:14]} Nxd5 {[%emt 0:02:43]} 15. cxd5 {[%emt 0:01:18]} Nd4 {[%emt 0:03:44]} 16. a4 {[%emt 0:04:30]} Rc2 {[%emt 0:04:56]} 17. Be3 {[%emt 0:06:21]} Nxe2+ {[%emt 0:01:22]} 18. Kh2 {[%emt 0:00:04]} Rxb2 {[%emt 0:01:41]} 19. Rab1 {[%emt 0:03:27]} Rxb1 {[%emt 0:20:31]} 20. Rxb1 {[%emt 0:00:18]} Nc3 {[%emt 0:00:04]} 21. Rxb7 {[%emt 0:00:05]} Nxa4 {[%emt 0:07:32]} 22. Rxa7 {[%emt 0:01:54]} Nc5 {[%emt 0:01:54]} 23. Qc4 {[%emt 0:08:36]} Bf5 {[%emt 0:06:07]} 24. Bxc5 {[%emt 0:01:01]} dxc5 {[%emt 0:00:05]} 25. Qxc5 {[%emt 0:00:12]} e6 {[%emt 0:00:53]} 26. h4 {[%emt 0:02:51]} h6 {[%emt 0:00:02]} 27. Ne4 {[%emt 0:15:52]} exd5 {[%emt 0:01:25]} 28. Nd6 {[%emt 0:00:09]} Be6 {[%emt 0:00:07]} 29. f4 {[%emt 0:05:16]} Bf6 {[%emt 0:03:14]} 30. Nb5 {[%emt 0:02:48]} Qb8 {[%emt 0:12:38]} 31. Bxd5 {[%emt 0:01:21]} Rc8 {[%emt 0:01:13]} 32. Rc7 {[%emt 0:00:02]} Rxc7 {[%emt 0:00:14]} 33. Nxc7 {[%emt 0:00:05]} Qb2+ {[%emt 0:00:45]} 34. Bg2 {[%emt 0:00:05]} Bd4 {[%emt 0:01:27]} 35. Qb5 {[%emt 0:01:28]} Bb3 {[%emt 0:02:05]} 36. Qe8+ {[%emt 0:04:58]} Kg7 {[%emt 0:00:13]} 37. Qe1 {[%emt 0:00:47]} Qc2 {[%emt 0:02:35]} 38. Ne8+ {[%emt 0:01:04]} Kh7 {[%emt 0:00:52]} 39. Qe7 {[%emt 0:00:52]} Bd5 {[%emt 0:00:33]} 0-1

[Event "New York Winter Invitational IM-D 2022"]
[Site "New York"]
[Date "2022.01.15"]
[Round "4.3"]
[White "Xu, Grant"]
[Black "Hardaway, Brewington"]
[Result "1/2-1/2"]
[ECO "B21"]
[WhiteElo "2231"]
[BlackElo "2207"]
[Annotator "ChessBase"]
[PlyCount "187"]
[EventDate "2022.01.11"]
[EventType "tourn"]
[EventCountry "USA"]
[SourceTitle "playchess.com"]
[Source "ChessBase"]
[SourceQuality "1"]
[TimeControl "5400+30"]

1. e4 {[%emt 0:00:05]} c5 {[%emt 0:00:02]} 2. d4 {[%emt 0:00:46]} cxd4 {[%emt 0:00:03]} 3. c3 {[%emt 0:00:04]} dxc3 {[%emt 0:00:02]} 4. Nxc3 {[%emt 0:00:06]} e6 {[%emt 0:00:03]} 5. Nf3 {[%emt 0:00:37]} Nc6 {[%emt 0:00:04]} 6. Bc4 {[%emt 0:00:44]} Bb4 {[%emt 0:00:05]} 7. O-O {[%emt 0:00:43]} Nge7 {[%emt 0:00:03]} 8. Qc2 {[%emt 0:00:53]} O-O {[%emt 0:00:31]} 9. Rd1 {[%emt 0:00:54]} Ng6 {[%emt 0:00:25]} 10. Be3 {[%emt 0:06:14]} b6 {[%emt 0:00:54]} 11. Bg5 {[%emt 0:07:49]} Be7 {[%emt 0:03:35]} 12. Bxe7 {[%emt 0:00:36]} Qxe7 {[%emt 0:00:22]} 13. Nb5 {[%emt 0:00:12]} Na5 {[%emt 0:07:13]} 14. Bf1 {[%emt 0:06:02]} Bb7 {[%emt 0:04:04]} 15. Nd6 {[%emt 0:00:34]} Bc6 {[%emt 0:09:02]} 16. Ba6 {[%emt 0:31:01]} Rab8 {[%emt 0:04:23]} 17. b4 {[%emt 0:01:10]} Bb7 {[%emt 0:04:56]} 18. Nxb7 {[%emt 0:08:50]} Nxb7 {[%emt 0:00:02]} 19. Qc7 {[%emt 0:00:08]} d5 {[%emt 0:00:02]} 20. Rac1 {[%emt 0:00:12]} dxe4 {[%emt 0:08:44]} 21. Qxe7 {[%emt 0:01:11]} Nxe7 {[%emt 0:00:19]} 22. Ne5 {[%emt 0:00:05]} Nd5 {[%emt 0:06:52]} 23. Nd7 {[%emt 0:01:48]} Nd6 {[%emt 0:02:36]} 24. Nxb8 {[%emt 0:00:28]} Rxb8 {[%emt 0:00:02]} 25. Rc6 {[%emt 0:07:59]} Nf5 {[%emt 0:00:35]} 26. g4 {[%emt 0:03:06]} Nfe7 {[%emt 0:04:47]} 27. Rd6 {[%emt 0:00:14]} h5 {[%emt 0:08:15]} 28. gxh5 {[%emt 0:02:52]} Nxb4 {[%emt 0:00:32]} 29. Rd8+ {[%emt 0:00:45]} Rxd8 {[%emt 0:00:01]} 30. Rxd8+ {[%emt 0:00:01]} Kh7 {[%emt 0:00:01]} 31. Bb7 {[%emt 0:03:50]} Nxa2 {[%emt 0:04:55]} 32. Bxe4+ {[%emt 0:00:12]} f5 {[%emt 0:03:17]} 33. Rd7 {[%emt 0:00:08]} Ng8 {[%emt 0:16:09]} 34. Rxa7 {[%emt 0:00:42]} Nc3 {[%emt 0:00:08]} 35. Bf3 {[%emt 0:01:03]} e5 {[%emt 0:01:06]} 36. Bc6 {[%emt 0:02:40]} Nf6 {[%emt 0:00:21]} 37. Rb7 {[%emt 0:01:29]} Kh6 {[%emt 0:02:53]} 38. Rxb6 {[%emt 0:00:28]} Nxh5 {[%emt 0:05:23]} 39. Bf3+ {[%emt 0:01:35]} Nf6 {[%emt 0:00:05]} 40. Rc6 {[%emt 0:00:13]} Nb5 {[%emt 0:00:05]} 41. Rc5 {[%emt 0:00:55]} Nd4 {[%emt 0:00:08]} 42. Bb7 {[%emt 0:00:38]} e4 {[%emt 0:00:20]} 43. Rc4 {[%emt 0:00:27]} Nf3+ {[%emt 0:00:09]} 44. Kg2 {[%emt 0:00:22]} Nh5 {[%emt 0:01:00]} 45. Rc5 {[%emt 0:00:33]} Nf4+ {[%emt 0:00:09]} 46. Kh1 {[%emt 0:00:42]} g6 {[%emt 0:00:14]} 47. Ba6 {[%emt 0:00:35]} Nh3 {[%emt 0:00:18]} 48. Rc2 {[%emt 0:00:21]} Kg5 {[%emt 0:00:21]} 49. Bf1 {[%emt 0:00:18]} Nf4 {[%emt 0:00:11]} 50. Rc3 {[%emt 0:00:32]} Nd5 {[%emt 0:02:05]} 51. Rc5 {[%emt 0:00:18]} Nf6 {[%emt 0:00:01]} 52. Be2 {[%emt 0:00:31]} Nh4 {[%emt 0:02:18]} 53. Kg1 {[%emt 0:00:40]} Nd7 {[%emt 0:00:09]} 54. Ra5 {[%emt 0:00:28]} Nf8 {[%emt 0:00:27]} 55. Bc4 {[%emt 0:00:44]} Nf3+ {[%emt 0:00:09]} 56. Kg2 {[%emt 0:00:07]} Nd7 {[%emt 0:00:25]} 57. Be2 {[%emt 0:00:54]} Nde5 {[%emt 0:04:10]} 58. Bxf3 {[%emt 0:01:36]} Nxf3 {[%emt 0:00:04]} 59. Kg3 {[%emt 0:00:15]} Nd4 {[%emt 0:01:01]} 60. h4+ {[%emt 0:00:52]} Kh5 {[%emt 0:00:12]} 61. Ra2 {[%emt 0:01:10]} g5 {[%emt 0:01:14]} 62. hxg5 {[%emt 0:02:21]} Kxg5 {[%emt 0:00:02]} 63. Ra5 {[%emt 0:00:26]} Ne2+ {[%emt 0:00:04]} 64. Kg2 {[%emt 0:00:13]} Kg4 {[%emt 0:00:08]} 65. Kf1 {[%emt 0:00:19]} Nf4 {[%emt 0:00:52]} 66. Ra8 {[%emt 0:00:37]} Kf3 {[%emt 0:00:28]} 67. Rf8 {[%emt 0:00:12]} Kg4 {[%emt 0:00:49]} 68. Rg8+ {[%emt 0:00:05]} Kh5 {[%emt 0:00:02]} 69. Ke1 {[%emt 0:00:15]} Ng6 {[%emt 0:00:35]} 70. Ke2 {[%emt 0:00:18]} Kg5 {[%emt 0:00:03]} 71. Ke3 {[%emt 0:00:12]} Kf6 {[%emt 0:00:02]} 72. Kd4 {[%emt 0:00:32]} Kf7 {[%emt 0:00:02]} 73. Ra8 {[%emt 0:00:33]} Kf6 {[%emt 0:00:08]} 74. Kd5 {[%emt 0:01:53]} Nf4+ {[%emt 0:00:04]} 75. Kd4 {[%emt 0:00:58]} Ne6+ {[%emt 0:01:00]} 76. Ke3 {[%emt 0:00:08]} Nc7 {[%emt 0:00:15]} 77. Rc8 {[%emt 0:00:35]} Nd5+ {[%emt 0:00:09]} 78. Kd4 {[%emt 0:00:06]} Nf4 {[%emt 0:00:11]} 79. Rb8 {[%emt 0:01:01]} Ne6+ {[%emt 0:00:05]} 80. Ke3 {[%emt 0:00:18]} Nc7 {[%emt 0:00:27]} 81. Kf4 {[%emt 0:00:21]} Ne6+ {[%emt 0:00:18]} 82. Kg3 {[%emt 0:00:05]} Nd4 {[%emt 0:00:31]} 83. Kh4 {[%emt 0:00:24]} Ke5 {[%emt 0:00:09]} 84. Kg3 {[%emt 0:00:42]} Ne2+ {[%emt 0:00:11]} 85. Kg2 {[%emt 0:00:24]} Nd4 {[%emt 0:00:28]} 86. Rb4 {[%emt 0:00:19]} Ne2 {[%emt 0:00:31]} 87. Rb5+ {[%emt 0:00:22]} Kf4 {[%emt 0:00:07]} 88. Rc5 {[%emt 0:00:27]} Nd4 {[%emt 0:00:04]} 89. Rd5 {[%emt 0:00:17]} Nf3 {[%emt 0:00:05]} 90. Kh3 {[%emt 0:00:10]} Ne5 {[%emt 0:00:19]} 91. Ra5 {[%emt 0:00:23]} Nd3 {[%emt 0:00:08]} 92. Kg2 {[%emt 0:00:08]} Ne1+ {[%emt 0:00:03]} 93. Kf1 {[%emt 0:00:52]} Nf3 {[%emt 0:01:05]} 94. Ra8 {[%emt 0:00:53]} 1/2-1/2

[Event "New York Winter Invitational IM-D 2022"]
[Site "New York"]
[Date "2022.01.17"]
[Round "7.3"]
[White "Canty, James"]
[Black "Rosenberg, Evan S"]
[Result "1-0"]
[ECO "A21"]
[WhiteElo "2201"]
[BlackElo "2099"]
[Annotator "RC"]
[PlyCount "87"]
[EventDate "2022.01.11"]
[EventType "tourn"]
[EventCountry "USA"]
[SourceTitle "playchess.com"]
[Source "ChessBase"]
[SourceQuality "1"]
[TimeControl "5400+30"]

1. c4 {[%emt 0:00:03]} e5 {[%emt 0:00:42]} 2. Nc3 {[%emt 0:00:06]} Bb4 {[%emt 0:00:07]} 3. e4 {[%emt 0:00:06]} Bxc3 {[%emt 0:00:11]} 4. dxc3 {[%emt 0:00:04]} d6 {[%emt 0:00:14]} 5. Bd3 {[%emt 0:00:11]} Nf6 {[%emt 0:06:14]} 6. f3 {[%emt 0:00:28]} a5 {[%emt 0:02:07]} 7. Be3 {[%emt 0:03:57]} Na6 {[%emt 0:01:43]} 8. Ne2 {[%emt 0:01:34]} b6 {[%emt 0:00:57]} 9. O-O {[%emt 0:00:33]} Bb7 {[%emt 0:01:35]} 10. Ng3 {[%emt 0:05:01]} Nc5 {[%emt 0:02:05]} 11. Bc2 {[%emt 0:01:06]} Ba6 {[%emt 0:08:17]} 12. b3 {[%emt 0:02:16]} Ne6 {[%emt 0:01:50]} 13. f4 {[%emt 0:01:51]} h5 {[%emt 0:05:05]} 14. h3 {[%emt 0:05:04]} h4 {[%emt 0:11:22]} 15. Nf5 {[%emt 0:00:05]} exf4 {[%emt 0:07:53]} 16. Bxf4 {[%emt 0:00:29]} Nh5 {[%emt 0:00:53]} 17. Bxd6 {[%emt 0:03:09]} g6 {[%emt 0:02:35]} 18. Qd5 {[%emt 0:00:41]} Rb8 {[%emt 0:17:25]} 19. Qe5 {[%emt 0:02:06]} Rh7 {[%emt 0:04:59]} 20. Rad1 {[%emt 0:00:47]} gxf5 {[%emt 0:04:00]} 21. exf5 {[%emt 0:01:00]} cxd6 {[%emt 0:02:04]} 22. Rxd6 {[%emt 0:00:06]} Qc7 {[%emt 0:00:55]} 23. fxe6 {[%emt 0:00:44]} f6 {[%emt 0:00:13]} 24. Rxf6 {[%emt 0:02:05]} Qc5+ {[%emt 0:00:41]} 25. Qxc5 {[%emt 0:00:09]} bxc5 {[%emt 0:00:01]} 26. Bxh7 {[%emt 0:00:55]} Nxf6 {[%emt 0:00:05]} 27. Bg6+ {[%emt 0:00:14]} Ke7 {[%emt 0:00:08]} 28. Rxa6 {[%emt 0:00:05]} Rd8 {[%emt 0:01:15]} 29. Rxa5 {[%emt 0:02:29]} Kxe6 {[%emt 0:01:32]} 30. Rxc5 {[%emt 0:00:14]} Rd1+ {[%emt 0:00:18]} 31. Kh2 {[%emt 0:00:05]} Rd2 {[%emt 0:00:12]} 32. a4 {[%emt 0:00:20]} Ra2 {[%emt 0:00:38]} 33. a5 {[%emt 0:00:11]} Kd6 {[%emt 0:00:26]} 34. Rb5 {[%emt 0:00:11]} Nd7 {[%emt 0:00:08]} 35. Bf5 {[%emt 0:00:36]} Nc5 {[%emt 0:00:39]} 36. b4 {[%emt 0:00:28]} Na4 {[%emt 0:00:09]} 37. Rd5+ {[%emt 0:00:48]} Kc7 {[%emt 0:00:04]} 38. b5 {[%emt 0:00:41]} Nxc3 {[%emt 0:00:26]} 39. Rd7+ {[%emt 0:01:37]} Kb8 {[%emt 0:00:06]} 40. a6 {[%emt 0:00:41]} Ka8 {[%emt 0:00:50]} 41. Bg4 {[%emt 0:00:36]} Kb8 {[%emt 0:00:57]} 42. Bf3 {[%emt 0:00:18]} Kc8 {[%emt 0:01:23]} 43. Bc6 {[%emt 0:00:06]} Ne4 {[%emt 0:05:18]} 44. b6 {[%emt 0:00:34]} 1-0